Workbook

Sheet Náklady na renovaci koupelny
B1: List pro výpočet nákladů na renovaci koupelny
B2: POZNÁMKA: Sloupce tabulky s názvem Rozdíl ukazují, jestli skutečné částky překročily ty odhadované. Červená čísla znamenají překročení odhadu (záporné částky), černá čísla znamenají úsporu oproti odhadu (kladné částky).
E3: Položková cena (Kč) | H3: Celková cena (Kč)
B4: Oblast | C4: Položky | D4: Množství | E4: Odhad | F4: Skutečnost | G4: Rozdíl | H4: Odhad | I4: Skutečnost | J4: Rozdíl
B5: Vana/sprcha | C5: Vana, litinová, 150 cm, standardní | D5: 1 | E5: 250.00 Kč | F5: =RANDBETWEEN(E5+2,E5+20) -> 267.00 Kč | G5: =IFERROR(Náklady[[#This Row],[Odhad]]-Náklady[[#This Row],[Skutečnost]], "") -> -17.00 Kč | H5: =IFERROR(Náklady[[#This Row],[Množství]]*Náklady[[#This Row],[Odhad]], "") -> 250.00 Kč | I5: =IFERROR(Náklady[[#This Row],[Množství]]*Náklady[[#This Row],[Skutečnost]], "") -> 267.00 Kč | J5: =IFERROR(Náklady[[#This Row],[Odhad ]]-Náklady[[#This Row],[Skutečnost ]], "") -> -17.00 Kč
B6: Vana/sprcha | C6: Sprchové dveře, s panty, standardní | D6: 1 | E6: 200.00 Kč | F6: 213.00 Kč | G6: =IFERROR(Náklady[[#This Row],[Odhad]]-Náklady[[#This Row],[Skutečnost]], "") -> -13.00 Kč | H6: =IFERROR(Náklady[[#This Row],[Množství]]*Náklady[[#This Row],[Odhad]], "") -> 200.00 Kč | I6: =IFERROR(Náklady[[#This Row],[Množství]]*Náklady[[#This Row],[Skutečnost]], "") -> 213.00 Kč | J6: =IFERROR(Náklady[[#This Row],[Odhad ]]-Náklady[[#This Row],[Skutečnost ]], "") -> -13.00 Kč
B7: Vana/sprcha | C7: Sprchová hlavice, standardní | D7: 1 | E7: 50.00 Kč | F7: 68.00 Kč | G7: =IFERROR(Náklady[[#This Row],[Odhad]]-Náklady[[#This Row],[Skutečnost]], "") -> -18.00 Kč | H7: =IFERROR(Náklady[[#This Row],[Množství]]*Náklady[[#This Row],[Odhad]], "") -> 50.00 Kč | I7: =IFERROR(Náklady[[#This Row],[Množství]]*Náklady[[#This Row],[Skutečnost]], "") -> 68.00 Kč | J7: =IFERROR(Náklady[[#This Row],[Odhad ]]-Náklady[[#This Row],[Skutečnost ]], "") -> -18.00 Kč
B8: Vana/sprcha | C8: Obložení vany, standardní | D8: 1 | E8: 200.00 Kč | F8: 205.00 Kč | G8: =IFERROR(Náklady[[#This Row],[Odhad]]-Náklady[[#This Row],[Skutečnost]], "") -> -5.00 Kč | H8: =IFERROR(Náklady[[#This Row],[Množství]]*Náklady[[#This Row],[Odhad]], "") -> 200.00 Kč | I8: =IFERROR(Náklady[[#This Row],[Množství]]*Náklady[[#This Row],[Skutečnost]], "") -> 205.00 Kč | J8: =IFERROR(Náklady[[#This Row],[Odhad ]]-Náklady[[#This Row],[Skutečnost ]], "") -> -5.00 Kč
B9: Skříňky | C9: Skříňka na léky 60 cm, de luxe | D9: 1 | E9: 200.00 Kč | F9: 210.00 Kč | G9: =IFERROR(Náklady[[#This Row],[Odhad]]-Náklady[[#This Row],[Skutečnost]], "") -> -10.00 Kč | H9: =IFERROR(Náklady[[#This Row],[Množství]]*Náklady[[#This Row],[Odhad]], "") -> 200.00 Kč | I9: =IFERROR(Náklady[[#This Row],[Množství]]*Náklady[[#This Row],[Skutečnost]], "") -> 210.00 Kč | J9: =IFERROR(Náklady[[#This Row],[Odhad ]]-Náklady[[#This Row],[Skutečnost ]], "") -> -10.00 Kč
B10: Skříňky | C10: Toaletní stolek 75 cm, standardní | D10: 2 | E10: 100.00 Kč | F10: 113.00 Kč | G10: =IFERROR(Náklady[[#This Row],[Odhad]]-Náklady[[#This Row],[Skutečnost]], "") -> -13.00 Kč | H10: =IFERROR(Náklady[[#This Row],[Množství]]*Náklady[[#This Row],[Odhad]], "") -> 200.00 Kč | I10: =IFERROR(Náklady[[#This Row],[Množství]]*Náklady[[#This Row],[Skutečnost]], "") -> 226.00 Kč | J10: =IFERROR(Náklady[[#This Row],[Odhad ]]-Náklady[[#This Row],[Skutečnost ]], "") -> -26.00 Kč
B11: Umyvadlové desky | C11: Keramické dlaždice, de luxe (množství v metrech) | D11: 5 | E11: 22.50 Kč | F11: 38.00 Kč | G11: =IFERROR(Náklady[[#This Row],[Odhad]]-Náklady[[#This Row],[Skutečnost]], "") -> -15.50 Kč | H11: =IFERROR(Náklady[[#This Row],[Množství]]*Náklady[[#This Row],[Odhad]], "") -> 112.50 Kč | I11: =IFERROR(Náklady[[#This Row],[Množství]]*Náklady[[#This Row],[Skutečnost]], "") -> 190.00 Kč | J11: =IFERROR(Náklady[[#This Row],[Odhad ]]-Náklady[[#This Row],[Skutečnost ]], "") -> -77.50 Kč
B12: Baterie | C12: Baterie, vanová, standardní | D12: 1 | E12: 90.00 Kč | F12: 106.00 Kč | G12: =IFERROR(Náklady[[#This Row],[Odhad]]-Náklady[[#This Row],[Skutečnost]], "") -> -16.00 Kč | H12: =IFERROR(Náklady[[#This Row],[Množství]]*Náklady[[#This Row],[Odhad]], "") -> 90.00 Kč | I12: =IFERROR(Náklady[[#This Row],[Množství]]*Náklady[[#This Row],[Skutečnost]], "") -> 106.00 Kč | J12: =IFERROR(Náklady[[#This Row],[Odhad ]]-Náklady[[#This Row],[Skutečnost ]], "") -> -16.00 Kč
B13: Baterie | C13: Baterie, sprchová, páková, standardní | D13: 1 | E13: 115.00 Kč | F13: 127.00 Kč | G13: =IFERROR(Náklady[[#This Row],[Odhad]]-Náklady[[#This Row],[Skutečnost]], "") -> -12.00 Kč | H13: =IFERROR(Náklady[[#This Row],[Množství]]*Náklady[[#This Row],[Odhad]], "") -> 115.00 Kč | I13: =IFERROR(Náklady[[#This Row],[Množství]]*Náklady[[#This Row],[Skutečnost]], "") -> 127.00 Kč | J13: =IFERROR(Náklady[[#This Row],[Odhad ]]-Náklady[[#This Row],[Skutečnost ]], "") -> -12.00 Kč
B14: Baterie | C14: Umyvadlová baterie, standardní | D14: 1 | E14: 95.00 Kč | F14: 109.00 Kč | G14: =IFERROR(Náklady[[#This Row],[Odhad]]-Náklady[[#This Row],[Skutečnost]], "") -> -14.00 Kč | H14: =IFERROR(Náklady[[#This Row],[Množství]]*Náklady[[#This Row],[Odhad]], "") -> 95.00 Kč | I14: =IFERROR(Náklady[[#This Row],[Množství]]*Náklady[[#This Row],[Skutečnost]], "") -> 109.00 Kč | J14: =IFERROR(Náklady[[#This Row],[Odhad ]]-Náklady[[#This Row],[Skutečnost ]], "") -> -14.00 Kč
B15: Podlaha | C15: Keramické dlaždice, standardní (množství v metrech čtverečních) | D15: 35 | E15: 12.00 Kč | F15: 19.00 Kč | G15: =IFERROR(Náklady[[#This Row],[Odhad]]-Náklady[[#This Row],[Skutečnost]], "") -> -7.00 Kč | H15: =IFERROR(Náklady[[#This Row],[Množství]]*Náklady[[#This Row],[Odhad]], "") -> 420.00 Kč | I15: =IFERROR(Náklady[[#This Row],[Množství]]*Náklady[[#This Row],[Skutečnost]], "") -> 665.00 Kč | J15: =IFERROR(Náklady[[#This Row],[Odhad ]]-Náklady[[#This Row],[Skutečnost ]], "") -> -245.00 Kč
B16: Kovové doplňky | C16: Tyčový držák na ručníky, standardní | D16: 2 | E16: 15.00 Kč | F16: 23.00 Kč | G16: =IFERROR(Náklady[[#This Row],[Odhad]]-Náklady[[#This Row],[Skutečnost]], "") -> -8.00 Kč | H16: =IFERROR(Náklady[[#This Row],[Množství]]*Náklady[[#This Row],[Odhad]], "") -> 30.00 Kč | I16: =IFERROR(Náklady[[#This Row],[Množství]]*Náklady[[#This Row],[Skutečnost]], "") -> 46.00 Kč | J16: =IFERROR(Náklady[[#This Row],[Odhad ]]-Náklady[[#This Row],[Skutečnost ]], "") -> -16.00 Kč
B17: Kovové doplňky | C17: Držák na toaletní papír | D17: 1 | E17: 10.00 Kč | F17: 20.00 Kč | G17: =IFERROR(Náklady[[#This Row],[Odhad]]-Náklady[[#This Row],[Skutečnost]], "") -> -10.00 Kč | H17: =IFERROR(Náklady[[#This Row],[Množství]]*Náklady[[#This Row],[Odhad]], "") -> 10.00 Kč | I17: =IFERROR(Náklady[[#This Row],[Množství]]*Náklady[[#This Row],[Skutečnost]], "") -> 20.00 Kč | J17: =IFERROR(Náklady[[#This Row],[Odhad ]]-Náklady[[#This Row],[Skutečnost ]], "") -> -10.00 Kč
B18: Osvětlení | C18: Zápustná světla, standardní | D18: 4 | E18: 25.00 Kč | F18: 36.00 Kč | G18: =IFERROR(Náklady[[#This Row],[Odhad]]-Náklady[[#This Row],[Skutečnost]], "") -> -11.00 Kč | H18: =IFERROR(Náklady[[#This Row],[Množství]]*Náklady[[#This Row],[Odhad]], "") -> 100.00 Kč | I18: =IFERROR(Náklady[[#This Row],[Množství]]*Náklady[[#This Row],[Skutečnost]], "") -> 144.00 Kč | J18: =IFERROR(Náklady[[#This Row],[Odhad ]]-Náklady[[#This Row],[Skutečnost ]], "") -> -44.00 Kč
B19: Umyvadla | C19: Koupelnové umyvadlo, standardní | D19: 2 | E19: 60.00 Kč | F19: 71.00 Kč | G19: =IFERROR(Náklady[[#This Row],[Odhad]]-Náklady[[#This Row],[Skutečnost]], "") -> -11.00 Kč | H19: =IFERROR(Náklady[[#This Row],[Množství]]*Náklady[[#This Row],[Odhad]], "") -> 120.00 Kč | I19: =IFERROR(Náklady[[#This Row],[Množství]]*Náklady[[#This Row],[Skutečnost]], "") -> 142.00 Kč | J19: =IFERROR(Náklady[[#This Row],[Odhad ]]-Náklady[[#This Row],[Skutečnost ]], "") -> -22.00 Kč
B20: Ostatní | D20: 1 | E20: 20.00 Kč | F20: 37.00 Kč | G20: =IFERROR(Náklady[[#This Row],[Odhad]]-Náklady[[#This Row],[Skutečnost]], "") -> -17.00 Kč | H20: =IFERROR(Náklady[[#This Row],[Množství]]*Náklady[[#This Row],[Odhad]], "") -> 20.00 Kč | I20: =IFERROR(Náklady[[#This Row],[Množství]]*Náklady[[#This Row],[Skutečnost]], "") -> 37.00 Kč | J20: =IFERROR(Náklady[[#This Row],[Odhad ]]-Náklady[[#This Row],[Skutečnost ]], "") -> -17.00 Kč
B21: Mezisoučet | E21: =SUBTOTAL(109,Náklady[Odhad]) -> 1,464.50 Kč | F21: =SUBTOTAL(109,Náklady[Skutečnost]) -> 1,662.00 Kč | G21: =SUBTOTAL(109,Náklady[Rozdíl]) -> -197.50 Kč | H21: =SUBTOTAL(109,Náklady[[Odhad ]]) -> 2,212.50 Kč | I21: =SUBTOTAL(109,Náklady[[Skutečnost ]]) -> 2,775.00 Kč | J21: =SUBTOTAL(109,Náklady[[Rozdíl ]]) -> -562.50 Kč
B22: Neočekávané náklady – 30 % navíc oproti odhadu | E22: =IFERROR(Náklady[[#Totals],[Odhad]]*0.3, "") -> 439.35 Kč | H22: =IFERROR(Náklady[[#Totals],[Odhad ]]*0.3, "") -> 663.75 Kč
B23: Celkové náklady | E23: =IFERROR(SUM(E21:E21), "") -> 1,464.50 Kč | H23: =IFERROR(SUM(Náklady[[#Totals],[Odhad ]],Nadsazení), "") -> 2,876.25 Kč
